bitfinex-derivatives/quotes_BTCF0:USTF0_20251210
["timestamp","ask_amount","ask_price","bid_price","bid_amount"]
[1765369486324,0.5705925,92137.0,92136.0,0.13340321]
[1765369487228,0.5705925,92137.0,92136.0,0.11541321]
[1765369488626,0.5705925,92137.0,92136.0,0.13340321]
[1765369489125,0.5705925,92137.0,92136.0,0.11541321]
[1765369489422,0.5705925,92137.0,92136.0,0.08743321]
[1765369489629,0.5705925,92137.0,92136.0,0.05813503]
[1765369490620,0.5705925,92137.0,92136.0,0.03063503]
[1765369491233,0.5705925,92137.0,92136.0,0.06004503]
[1765369491437,0.5705925,92137.0,92136.0,0.03063503]
[1765369493431,0.50392,92137.0,92136.0,0.10570503]
[1765369494524,0.50392,92137.0,92136.0,0.16432083]
[1765369495331,0.50392,92137.0,92136.0,0.10570503]
[1765369496932,0.56183,92137.0,92136.0,0.10570503]
[1765369497727,0.50392,92137.0,92136.0,0.10570503]
[1765369498222,0.50392,92137.0,92136.0,0.10670503]
[1765369498419,0.53246,92137.0,92136.0,0.10670503]
[1765369499332,0.56183,92137.0,92136.0,0.10670503]
[1765369499632,0.53246,92137.0,92136.0,0.10670503]
[1765369500451,0.56183,92137.0,92136.0,0.10670503]
[1765369501839,0.50392,92137.0,92136.0,0.10670503]
[1765369502928,0.53246,92137.0,92136.0,0.10670503]
[1765369503227,0.56183,92137.0,92136.0,0.10670503]
[1765369505932,0.56183,92137.0,92136.0,0.11755763]
[1765369509643,0.5726825,92137.0,92136.0,0.10670503]
[1765369514137,0.5726825,92137.0,92136.0,0.09048503]
[1765369515346,0.56183,92137.0,92136.0,0.09048503]
[1765369517549,0.56183,92137.0,92136.0,0.11797763]
[1765369518249,0.56183,92137.0,92136.0,0.10712503]
[1765369518948,0.5726825,92137.0,92136.0,0.10712503]
[1765369519151,0.5726825,92137.0,92136.0,0.09048503]
[1765369520755,0.5726825,92137.0,92136.0,0.03163503]
[1765369521543,0.5726825,92137.0,92136.0,0.05934503]
[1765369523247,0.5726825,92137.0,92136.0,0.08754503]
[1765369524253,0.56183,92137.0,92136.0,0.08754503]
[1765369525850,0.5726825,92137.0,92136.0,0.08754503]
[1765369527662,0.56183,92137.0,92136.0,0.11580763]
[1765369530472,0.56183,92137.0,92136.0,0.10495503]
[1765369538864,0.56183,92137.0,92136.0,0.10395503]
[1765369539065,0.56183,92137.0,92136.0,0.10495503]
[1765369539460,0.02854,92137.0,92136.0,0.10495503]
[1765369539870,0.05777,92137.0,92136.0,0.10495503]
[1765369540256,0.02854,92137.0,92136.0,0.10495503]
[1765369540461,0.06028531,92140.0,92139.0,0.05839]
[1765369540666,0.06028531,92140.0,92139.0,0.08902503]
[1765369542363,0.06028531,92140.0,92139.0,0.09002503]
[1765369547569,0.06028531,92140.0,92139.0,0.10743503]
[1765369550675,0.07113741,92140.0,92139.0,0.10743503]
[1765369550880,0.07113741,92140.0,92139.0,0.09002503]
[1765369551773,0.01193741,92140.0,92139.0,0.03163503]
[1765369554281,0.00108531,92140.0,92139.0,0.03163503]
[1765369555078,0.01193741,92140.0,92139.0,0.03163503]
[1765369559283,0.00108531,92140.0,92139.0,0.03163503]
[1765369560496,0.00108531,92140.0,92139.0,0.070697]
[1765369560683,0.40108531,92140.0,92139.0,0.02681034]
[1765369560984,0.40108531,92140.0,92139.0,0.001]
[1765369560985,0.4898019,92140.0,92139.0,0.001]
[1765369561173,0.4898019,92140.0,92130.0,0.02929747]
[1765369561174,0.0108533,92130.0,92129.0,0.02929747]
[1765369561484,0.0108533,92130.0,92124.0,0.03922477]
[1765369561485,0.0108538,92126.0,92124.0,0.0001628]
[1765369576992,0.0108538,92126.0,92125.0,0.03036806]
[1765369590805,0.0108538,92126.0,92125.0,0.05969848]
[1765369591095,0.0108538,92126.0,92125.0,0.03036806]
[1765369591408,0.0108538,92126.0,92125.0,0.05969852]
[1765369595208,0.0108538,92126.0,92125.0,0.03036806]
[1765369600503,0.0108547,92118.0,92116.0,0.02933046]
[1765369600703,0.0108562,92105.0,92102.0,0.03906197]
[1765369600916,0.0108572,92097.0,92096.0,0.01789]
[1765369602313,0.0108572,92097.0,92096.0,0.01889]
[1765369604199,0.0128572,92097.0,92096.0,0.01789]
[1765369604400,0.10054718,92097.0,92089.0,7.932e-05]
[1765369604606,0.010858,92090.0,92089.0,7.932e-05]
[1765369607915,0.011858,92090.0,92089.0,7.932e-05]
[1765369619418,0.0276283,92088.0,92077.0,0.3608]
[1765369620721,0.0108594,92078.0,92077.0,0.3608]
[1765369621018,0.5148194,92078.0,92077.0,0.3608]
[1765369622328,0.5148194,92078.0,92077.0,0.3628]
[1765369623612,0.5158194,92078.0,92077.0,0.3628]
[1765369625031,0.5158194,92078.0,92077.0,0.3608]
[1765369625223,0.0118594,92078.0,92077.0,0.3608]
[1765369625420,0.001,92078.0,92077.0,0.3608]
[1765369625728,0.505,92078.0,92077.0,0.39079153]
[1765369635127,0.505,92078.0,92077.0,0.4298535]
[1765369635319,0.505,92078.0,92077.0,0.39079153]
[1765369636123,0.505,92078.0,92077.0,0.4298535]
[1765369636326,0.505,92078.0,92077.0,0.39079153]
[1765369639734,0.505,92078.0,92077.0,0.42984439]
[1765369640437,0.505,92078.0,92077.0,0.43059532]
[1765369640639,0.56141,92078.0,92077.0,0.48848532]
[1765369641839,0.56141,92078.0,92077.0,0.42067246]
[1765369642038,0.56141,92078.0,92077.0,0.39154246]
[1765369642627,0.56141,92078.0,92077.0,6e-08]
[1765369643245,0.05641,92076.0,92075.0,0.0033]
[1765369644738,0.0108595,92077.0,92062.0,0.03905286]
[1765369644739,0.0679705,92069.0,92062.0,0.03905286]
[1765369645036,0.05645,92052.0,92051.0,0.02703]
[1765369645336,0.35213,92052.0,92051.0,0.05404]
[1765369647047,0.54569,92052.0,92051.0,0.05504]
[1765369647640,0.0108624,92053.0,92052.0,0.05404]
[1765369648642,0.50408,92059.0,92058.0,0.05404]
[1765369648836,0.0108616,92060.0,92059.0,0.05404]
[1765369650930,0.00016289,92061.0,92060.0,0.05404]
[1765369651342,0.05661289,92061.0,92060.0,0.05404]
[1765369653243,0.00016289,92061.0,92060.0,0.05404]
[1765369653646,0.00116289,92061.0,92060.0,0.05404]
[1765369654851,0.00116289,92061.0,92060.0,0.08427058]
[1765369657447,0.02856289,92061.0,92060.0,0.08427058]
[1765369657644,0.00116289,92061.0,92060.0,0.08427058]
[1765369658448,0.05761289,92061.0,92060.0,0.08427058]
[1765369661454,0.00116289,92061.0,92060.0,0.08427058]
[1765369665155,0.00116289,92061.0,92060.0,0.11350242]
[1765369666446,0.00116289,92061.0,92060.0,0.08427058]
[1765369668254,0.0108616,92060.0,92057.0,0.03905286]
[1765369668442,0.07291,92058.0,92057.0,0.05404]
[1765369670756,0.05645,92058.0,92057.0,0.05404]
[1765369672447,0.0673119,92057.0,92056.0,0.08331799]
[1765369672649,0.0673123,92054.0,92053.0,0.05630799]
[1765369672856,0.0673123,92054.0,92053.0,0.05404]
[1765369675252,0.0673123,92054.0,92053.0,0.05504]
[1765369676243,0.0673123,92054.0,92053.0,0.001]
[1765369676456,0.0673123,92054.0,92053.0,0.002]
[1765369678058,0.15629422,92054.0,92053.0,0.002]
[1765369678545,0.15629422,92054.0,92042.0,0.02927799]
[1765369678546,0.0679936,92043.0,92042.0,0.08805799]
[1765369679050,0.0108636,92043.0,92042.0,0.05878]
[1765369679250,0.0108636,92043.0,92042.0,0.09783286]
[1765369679454,0.02955,92054.0,92053.0,0.02941]
[1765369679658,0.0394123,92054.0,92053.0,0.05878]
[1765369680365,0.0394123,92054.0,92053.0,0.08851775]
[1765369681862,0.0118623,92054.0,92053.0,0.08851775]
[1765369684860,0.001,92054.0,92053.0,0.08851775]
[1765369686055,0.0108613,92063.0,92060.0,0.05515]
[1765369686261,0.0108606,92069.0,92060.0,0.08488775]
[1765369686460,2.89e-06,92061.0,92060.0,0.08488775]
[1765369686862,2.89e-06,92061.0,92060.0,0.1239272]
[1765369687056,2.89e-06,92061.0,92060.0,0.08488775]
[1765369687261,2.89e-06,92061.0,92060.0,0.12392154]
[1765369689969,0.0108599,92074.0,92060.0,0.12392154]
[1765369689970,0.0108595,92078.0,92074.0,0.05515]
[1765369690358,0.5043998,92075.0,92074.0,0.05515]
[1765369690564,0.5317398,92075.0,92074.0,0.05515]
[1765369692768,0.5337398,92075.0,92074.0,0.05515]
[1765369702270,0.5510598,92075.0,92074.0,0.05515]
[1765369704175,0.0678214,92061.0,92060.0,0.05683189]
[1765369704381,0.05696,92052.0,92051.0,0.0575605]
[1765369704582,0.0108625,92052.0,92051.0,0.08709183]
[1765369704777,0.06798429,92061.0,92060.0,0.07064]
[1765369705078,0.57226429,92061.0,92060.0,0.07064]
[1765369705264,0.57226429,92061.0,92060.0,0.0574]
[1765369706682,0.57226429,92061.0,92060.0,0.0584]
[1765369708082,0.57226429,92061.0,92060.0,0.0759]
[1765369709578,0.57226429,92061.0,92060.0,0.10546038]
[1765369712187,0.04056429,92061.0,92060.0,0.10546038]
[1765369712380,0.01102429,92061.0,92060.0,0.10546038]
[1765369712585,0.01102429,92061.0,92060.0,0.13473227]
[1765369712779,0.04056429,92061.0,92060.0,0.13473227]
[1765369713280,0.06798429,92061.0,92060.0,0.13473227]
[1765369714389,0.06798429,92061.0,92060.0,0.10546038]
[1765369719117,0.01102429,92061.0,92060.0,0.10546038]
[1765369719326,0.00016289,92061.0,92060.0,0.10546038]
[1765369725713,0.0108606,92068.0,92067.0,0.0574]
[1765369726025,0.0108604,92071.0,92070.0,0.01455]
[1765369726218,0.0108604,92071.0,92070.0,0.16010764]
[1765369727421,0.0108604,92071.0,92070.0,0.10151038]
[1765369729523,0.0404004,92071.0,92070.0,0.10151038]
[1765369731826,0.0108604,92071.0,92070.0,0.10151038]
[1765369732430,0.0404004,92071.0,92070.0,0.10151038]
[1765369734132,0.0683804,92071.0,92070.0,0.10151038]
[1765369736222,0.01102209,92080.0,92079.0,0.05816]
[1765369736424,0.06872209,92080.0,92079.0,0.11697283]
[1765369736841,0.06872209,92080.0,92079.0,0.08772038]
[1765369741335,0.08508209,92080.0,92079.0,0.05870038]
[1765369741722,0.08508209,92080.0,92079.0,0.02956038]
[1765369742031,0.06872209,92080.0,92079.0,0.08772038]
[1765369742232,0.08508209,92080.0,92079.0,0.08772038]
[1765369742438,0.08508209,92080.0,92079.0,0.11697661]
[1765369742938,0.08508209,92080.0,92079.0,0.08772038]
[1765369743732,0.08508209,92080.0,92079.0,0.02956038]
[1765369743934,0.08508209,92080.0,92079.0,0.08796264]
[1765369744135,0.08508209,92080.0,92079.0,0.05882264]
[1765369746332,0.08508209,92080.0,92079.0,0.02956038]
[1765369747035,0.08508209,92080.0,92079.0,0.05870038]
[1765369748240,0.08508209,92080.0,92079.0,0.02956038]
[1765369748739,0.08508209,92080.0,92079.0,0.05870038]
[1765369749142,0.08508209,92080.0,92079.0,0.08772038]
[1765369749529,0.04074209,92080.0,92079.0,0.08772038]
[1765369750034,0.06872209,92080.0,92079.0,0.08772038]
[1765369751238,0.06872209,92080.0,92079.0,0.11700348]
[1765369751851,0.08539209,92080.0,92079.0,0.11700348]
[1765369752340,0.06872209,92080.0,92079.0,0.11700348]
[1765369752940,0.08647209,92080.0,92079.0,0.08798348]
[1765369753140,0.08647209,92080.0,92079.0,0.02956038]
[1765369753341,0.08647209,92080.0,92079.0,0.05884348]
[1765369754940,0.08647209,92080.0,92079.0,0.08735348]
[1765369755346,0.08647209,92080.0,92079.0,0.02956038]
[1765369756146,0.08647209,92080.0,92079.0,0.02923468]
[1765369761751,0.08647209,92080.0,92079.0,0.05774468]
[1765369762345,0.06872209,92080.0,92079.0,0.08772468]
[1765369763048,0.57280209,92080.0,92079.0,0.08772468]
[1765369763956,0.59018209,92080.0,92079.0,0.08772468]
[1765369764344,0.59018209,92080.0,92079.0,0.05849]
[1765369764653,0.57280209,92080.0,92079.0,0.05849]
[1765369765156,0.57280209,92080.0,92079.0,0.02851]
[1765369765157,0.59018209,92080.0,92079.0,0.02851]
[1765369765654,0.0669197,92076.0,92075.0,0.08640099]
[1765369767140,0.0669197,92076.0,92075.0,0.05707]
[1765369767340,0.0108597,92076.0,92074.0,0.02933099]
[1765369767646,0.0669199,92074.0,92073.0,0.02933099]
[1765369767855,0.0669199,92074.0,92073.0,0.05853099]
[1765369768241,0.0669199,92074.0,92073.0,0.08640099]
[1765369769757,0.0669199,92074.0,92073.0,0.05707]
[1765369771358,0.0108599,92074.0,92073.0,0.05707]
[1765369771554,0.0669199,92074.0,92073.0,0.05707]
[1765369771759,0.5709999,92074.0,92073.0,0.05707]
[1765369783778,0.0108599,92074.0,92073.0,0.05707]
[1765369783976,0.56014,92074.0,92073.0,0.05707]
[1765369784279,0.5422599,92074.0,92073.0,0.05707]
[1765369784471,0.5422599,92074.0,92073.0,0.08625127]
[1765369784672,0.5709999,92074.0,92073.0,0.08625127]
[1765369788084,0.0108597,92077.0,92073.0,0.05705127]
[1765369788279,0.00016289,92080.0,92079.0,0.05707]
[1765369788587,0.00016289,92080.0,92079.0,0.09711057]
[1765369788779,0.2680982,92089.0,92088.0,0.05707]
[1765369788977,0.0108582,92089.0,92088.0,0.14487526]
[1765369789280,0.0108582,92089.0,92088.0,0.08625127]
[1765369790276,0.0381782,92089.0,92088.0,0.08625127]
[1765369791286,0.0381782,92089.0,92088.0,0.11552211]
[1765369792283,0.0381782,92089.0,92088.0,0.08625127]
[1765369793678,0.0381782,92089.0,92088.0,0.10012127]
[1765369794386,0.0681082,92089.0,92088.0,0.10012127]
[1765369800191,0.0681082,92089.0,92088.0,0.08625127]
[1765369800891,0.0681082,92089.0,92088.0,0.02918127]
[1765369801293,0.0681082,92089.0,92088.0,0.05822127]
[1765369801491,0.4681082,92089.0,92088.0,0.02918127]
[1765369801696,0.0681082,92089.0,92088.0,0.02918127]
[1765369807990,0.0681082,92089.0,92088.0,0.08807127]
[1765369808495,0.5721882,92089.0,92088.0,0.11728506]
[1765369808697,0.05725,92089.0,92088.0,0.11728506]
[1765369808894,0.05725,92089.0,92088.0,0.05899127]
[1765369809108,0.05725,92089.0,92088.0,0.08884127]
[1765369809800,0.05725,92089.0,92088.0,0.11806009]
[1765369810601,0.05725,92089.0,92088.0,0.08821009]
[1765369810802,0.05725,92089.0,92088.0,0.05840009]
[1765369811205,0.05725,92089.0,92088.0,0.11634009]
[1765369811400,0.05725,92089.0,92088.0,0.08712127]
[1765369813209,0.5149781,92090.0,92088.0,0.02918127]
[1765369813511,0.5149781,92090.0,92089.0,0.02918127]
[1765369819803,0.5149781,92090.0,92089.0,0.05844181]
[1765369820004,0.5149781,92090.0,92089.0,0.02918127]
[1765369820216,0.010859,92082.0,92078.0,0.02926054]
[1765369820402,0.0108593,92079.0,92078.0,0.02926054]
[1765369820608,0.0108593,92079.0,92078.0,0.03051263]
[1765369822113,0.0108593,92079.0,92078.0,0.03151263]
[1765369822315,0.0108593,92079.0,92078.0,0.03251263]
[1765369823213,0.0108593,92079.0,92078.0,0.03151263]
[1765369823620,0.0108593,92079.0,92078.0,0.03051263]
[1765369829806,0.2244288,92088.0,92078.0,0.03051263]
[1765369830006,0.26628,92079.0,92075.0,0.03905584]
[1765369830217,0.2771394,92079.0,92076.0,0.06990463]
[1765369830422,0.2771394,92079.0,92077.0,0.03084879]
[1765369830632,0.2771394,92079.0,92078.0,0.03084879]
[1765369833527,0.0108594,92079.0,92078.0,0.03084879]
[1765369833718,0.5149794,92079.0,92078.0,0.03084879]
[1765369834317,0.5150194,92079.0,92078.0,0.0600956]
[1765369839726,0.5150194,92079.0,92078.0,0.03084879]
[1765369840424,0.0108594,92079.0,92078.0,0.03084879]
[1765369840732,0.0108594,92079.0,92078.0,0.0600956]
[1765369841026,0.0108594,92079.0,92078.0,0.03084879]
[1765369847327,0.0108594,92079.0,92078.0,0.06990463]
[1765369849238,0.0108594,92079.0,92078.0,0.03084879]
[1765369857445,0.0108594,92079.0,92078.0,0.08947278]
[1765369864142,0.0108591,92082.0,92080.0,0.0169]
[1765369864445,0.0108591,92082.0,92081.0,0.03084879]
[1765369873955,0.0108591,92082.0,92081.0,0.03084879]
[1765369877156,0.0108591,92082.0,92081.0,0.08947278]
[1765369877852,0.0108591,92082.0,92081.0,0.03084879]
[1765369878561,0.0108574,92095.0,92090.0,0.01627]
[1765369878749,0.11219063,92100.0,92095.0,0.01627]
[1765369878946,0.01101999,92098.0,92097.0,0.03894171]
[1765369879147,0.01101999,92098.0,92097.0,0.0697905]
[1765369879348,0.00016289,92098.0,92097.0,0.03084879]
[1765369882265,0.00016289,92098.0,92097.0,0.05997955]
[1765369883361,0.00016289,92098.0,92097.0,0.03084879]
[1765369884459,0.00016289,92098.0,92097.0,0.05997955]
[1765369886371,0.00016289,92098.0,92097.0,0.03084879]
[1765369899476,0.06674999,92098.0,92097.0,0.08906879]
[1765369899877,0.05589289,92098.0,92097.0,0.08906879]
[1765369900070,0.02884289,92098.0,92097.0,0.08906879]
[1765369901078,0.00016289,92098.0,92097.0,0.08906879]
[1765369904378,0.00016289,92098.0,92097.0,0.14748558]
[1765369905379,0.00016289,92098.0,92097.0,0.08906879]
[1765369920973,0.01101999,92098.0,92097.0,0.08906879]
[1765369921378,0.00016289,92098.0,92097.0,0.08906879]
[1765369923991,0.05774289,92098.0,92097.0,0.08906879]
[1765369925186,0.02829289,92098.0,92097.0,0.08906879]
[1765369925481,0.05774289,92098.0,92097.0,0.08906879]
[1765369928989,0.00016289,92098.0,92097.0,0.08906879]
[1765369932691,0.0662352,92114.0,92113.0,0.0653153]
[1765369932894,0.0662352,92114.0,92113.0,0.08530879]
[1765369933193,0.0662352,92114.0,92113.0,0.14380585]
[1765369933392,0.0662352,92114.0,92113.0,0.08530879]
[1765369934391,0.0662352,92114.0,92113.0,0.08745164]
[1765369935704,0.010855,92116.0,92114.0,0.0653152]
[1765369935894,0.010855,92116.0,92114.0,0.13724758]
[1765369936094,0.02850561,92115.0,92114.0,0.13724758]
[1765369936391,0.00108561,92115.0,92114.0,0.13724758]
[1765369936786,0.02850561,92115.0,92114.0,0.13724758]
[1765369937496,0.05646561,92115.0,92114.0,0.13724758]
[1765369937896,0.05646561,92115.0,92114.0,0.12639238]
[1765369938289,0.05646561,92115.0,92114.0,0.08745164]
[1765369943212,0.00108561,92115.0,92114.0,0.08745164]
[1765369945297,0.02850561,92115.0,92114.0,0.08745164]
[1765369945706,0.00108561,92115.0,92114.0,0.08745164]
[1765369946408,0.00016289,92123.0,92122.0,0.0653142]
[1765369946597,0.00016289,92123.0,92122.0,0.09830584]
[1765369948610,0.00016289,92123.0,92122.0,0.09930584]
[1765369948902,0.11212873,92132.0,92131.0,0.0653132]
[1765369949102,0.0108525,92137.0,92136.0,0.0653125]
[1765369949305,0.0108525,92137.0,92136.0,0.09830414]
[1765369949504,0.0108525,92137.0,92136.0,0.13713325]
[1765369950013,0.0108525,92137.0,92136.0,0.09830414]
[1765369950512,0.03935751,92140.0,92139.0,0.05446]
[1765369950716,0.01193751,92140.0,92139.0,0.1165656]
[1765369951502,0.01193751,92140.0,92139.0,0.08745164]
[1765369951699,0.00108531,92140.0,92139.0,0.08745164]
[1765369951905,0.05646531,92140.0,92139.0,0.08745164]
[1765369952514,0.05646531,92140.0,92139.0,0.11655291]
[1765369953515,0.05646531,92140.0,92139.0,0.08745164]
[1765369953709,0.02850531,92140.0,92139.0,0.08745164]
[1765369954503,0.05646531,92140.0,92139.0,0.08745164]
[1765369956712,0.00108531,92140.0,92139.0,0.08745164]
[1765369956922,0.02850531,92140.0,92139.0,0.08745164]
[1765369957111,0.00108531,92140.0,92139.0,0.08745164]
[1765369957316,0.06731422,92165.0,92164.0,0.05446]
[1765369957816,0.05646502,92165.0,92164.0,0.05446]
[1765369958314,0.11212873,92174.0,92164.0,0.05446]
[1765369958315,0.05548778,92174.0,92173.0,0.05446]
[1765369958517,0.05548778,92174.0,92173.0,0.08731838]
[1765369967813,0.02752778,92174.0,92173.0,0.08731838]
[1765369968127,0.00010778,92174.0,92173.0,0.08731838]
[1765369968424,0.05444,92190.0,92185.0,0.01629]
[1765369968624,0.05444,92190.0,92189.0,0.05542]
[1765369970718,0.05444,92190.0,92180.0,0.0268702]
[1765369970719,0.05444,92181.0,92180.0,0.0555828]
[1765369970919,0.05444,92181.0,92180.0,0.10463508]
[1765369972126,0.05444,92181.0,92180.0,0.13367644]
[1765369973429,0.05444,92181.0,92180.0,0.10463508]
[1765369974028,0.05444,92181.0,92180.0,0.08834508]
[1765369974225,0.05444,92181.0,92180.0,0.10463508]
[1765369976433,0.05444,92181.0,92180.0,0.14339569]
[1765369976828,0.05444,92181.0,92180.0,0.10463508]
[1765369977221,0.06550305,92193.0,92192.0,0.05542]
[1765369977424,0.06550305,92193.0,92192.0,0.08818228]
[1765369979323,0.05465715,92193.0,92192.0,0.08818228]
[1765369981132,0.05465715,92193.0,92192.0,0.03276228]
[1765369981740,0.0740969,92184.0,92183.0,0.02903976]
[1765369981938,0.0740969,92184.0,92183.0,0.03259619]
[1765369984636,0.0740969,92184.0,92183.0,0.08801619]
[1765369984837,0.0652869,92184.0,92183.0,0.08801619]
[1765369985140,0.0652869,92184.0,92183.0,0.11705595]
[1765369985338,0.0652869,92184.0,92183.0,0.08801619]
[1765369987248,0.39892,92186.0,92185.0,0.05542]
[1765369987540,0.45336,92186.0,92185.0,0.08801619]
[1765369988339,0.45336,92186.0,92185.0,0.03259619]
[1765369988643,0.05444,92186.0,92185.0,0.08801619]
[1765369988841,0.55784,92186.0,92185.0,0.08801619]
[1765369991741,0.55784,92186.0,92185.0,0.03259619]
[1765369992746,0.55784,92186.0,92185.0,0.071493]
[1765369993635,0.55784,92186.0,92185.0,0.101483]
[1765369994440,0.55784,92186.0,92185.0,0.10149618]
[1765369994843,0.55784,92186.0,92185.0,0.12917618]
[1765369995348,0.55784,92186.0,92185.0,0.09026619]
[1765369997942,0.55784,92186.0,92185.0,0.03259619]
[1765369998741,0.55784,92186.0,92177.0,0.03896067]
[1765369998742,0.02963,92178.0,92177.0,0.03896067]
[1765369998946,0.05714,92178.0,92177.0,0.03896067]
[1765369999141,0.0679878,92177.0,92176.0,0.03896067]
[1765369999342,0.00881,92180.0,92173.0,1e-08]
[1765369999343,0.0108481,92174.0,92173.0,1e-08]
[1765369999548,0.05714,92151.0,92150.0,0.13446609]
[1765370000153,0.05714,92151.0,92150.0,0.05647]
[1765370002144,0.05714,92151.0,92150.0,0.06247]
[1765370002345,0.05714,92151.0,92150.0,0.06547]
[1765370002746,0.05714,92151.0,92150.0,0.05947]
[1765370002947,0.05714,92151.0,92150.0,0.06247]
[1765370004548,0.56054,92155.0,92154.0,0.07424]
[1765370004752,0.5034,92155.0,92154.0,0.07424]
[1765370005146,0.53303,92155.0,92154.0,0.07424]
[1765370006045,0.56054,92155.0,92154.0,0.07624]
[1765370006250,0.56054,92155.0,92154.0,0.07824]
[1765370006950,0.5034,92155.0,92154.0,0.07824]
[1765370007150,0.0108503,92156.0,92155.0,0.05647]
[1765370007549,0.0404803,92156.0,92155.0,0.05647]
[1765370008043,0.00016248,92160.0,92159.0,0.05647]
[1765370008450,0.11195077,92180.0,92175.0,0.05647]
[1765370008451,0.16918,92176.0,92175.0,0.05647]
[1765370008653,0.1800279,92176.0,92175.0,0.05647]
[1765370010256,0.0679879,92176.0,92175.0,0.05647]
[1765370010845,0.0679879,92176.0,92175.0,0.08515829]
[1765370013251,0.0108476,92179.0,92178.0,0.07424]
[1765370013453,0.0404772,92182.0,92180.0,0.0108474]
[1765370013655,0.02963,92182.0,92181.0,0.08515829]
[1765370013860,0.05714,92182.0,92181.0,0.08515829]
[1765370015249,0.53311,92188.0,92184.0,0.01777]
[1765370015446,0.5714665,92188.0,92187.0,0.05647]
[1765370015653,0.5714665,92188.0,92187.0,0.08515829]
[1765370017255,0.5714665,92188.0,92187.0,0.25015829]
[1765370018365,0.0679865,92188.0,92187.0,0.25015829]
[1765370018565,0.5714265,92188.0,92187.0,0.25015829]
[1765370019958,0.5714265,92188.0,92187.0,0.22147]
[1765370022968,0.5714265,92188.0,92187.0,0.165]
[1765370024859,0.5714265,92188.0,92187.0,0.22238]
[1765370027362,0.5714265,92188.0,92187.0,0.165]
[1765370028474,0.5714265,92188.0,92187.0,0.19458]
[1765370028969,0.5714265,92188.0,92187.0,0.22238]
[1765370029769,0.5714265,92188.0,92187.0,0.165]
[1765370030966,0.5714265,92188.0,92187.0,0.19458]
[1765370031168,0.5714265,92188.0,92187.0,0.19391869]
[1765370032468,0.5714265,92188.0,92187.0,0.22349869]
[1765370032669,0.5714265,92188.0,92187.0,0.25129869]
[1765370033177,0.5714265,92188.0,92187.0,0.22349869]
[1765370033476,0.5714265,92188.0,92187.0,0.25129869]
[1765370035071,0.5714265,92188.0,92187.0,0.19391869]
[1765370037876,0.5714265,92188.0,92187.0,0.22349869]
[1765370038879,0.5714265,92188.0,92187.0,0.19391869]
[1765370039075,0.5714265,92188.0,92187.0,0.25129869]
[1765370040281,0.5714265,92188.0,92187.0,0.19391869]
[1765370042282,0.5714265,92188.0,92187.0,0.14891869]
[1765370042482,0.5714265,92188.0,92173.0,0.03880848]
[1765370042483,0.0108479,92176.0,92173.0,0.03880848]
[1765370042684,0.0108479,92176.0,92174.0,0.0299435]
[1765370042880,0.0108484,92172.0,92170.0,0.01794]
[1765370045780,0.0108484,92172.0,92170.0,0.02094]
[1765370046990,0.01063997,92172.0,92170.0,0.02094]
[1765370049475,0.01063997,92172.0,92170.0,0.05052]
[1765370051586,0.01063997,92172.0,92170.0,0.07832]
[1765370055095,0.50344,92171.0,92170.0,0.07832]
[1765370056396,0.50344,92171.0,92170.0,0.07732]
[1765370056597,0.50344,92171.0,92170.0,0.07932]
[1765370060694,0.50344,92171.0,92170.0,0.02194]
[1765370061791,0.01063997,92172.0,92170.0,0.02194]
[1765370061999,0.50348,92171.0,92170.0,0.02194]
[1765370062391,0.50348,92171.0,92170.0,0.05761]
[1765370064498,0.50348,92171.0,92170.0,0.09614]
[1765370066801,0.01063997,92172.0,92170.0,0.09614]
[1765370067002,0.50348,92171.0,92170.0,0.09614]
[1765370067203,0.50348,92171.0,92170.0,0.12526215]
[1765370068105,0.50348,92171.0,92170.0,0.12326215]
[1765370068305,0.50348,92171.0,92170.0,0.12427229]
[1765370068506,0.50348,92171.0,92170.0,0.05007229]
[1765370068995,0.50348,92171.0,92170.0,0.02094]
[1765370069196,0.50348,92171.0,92166.0,0.0001627]
[1765370069496,0.50348,92171.0,92167.0,0.02914707]
[1765370069697,0.0108486,92170.0,92168.0,0.02914707]
[1765370070007,0.0185289,92167.0,92166.0,0.0001627]
[1765370070396,0.5181689,92167.0,92166.0,0.0743627]
[1765370070708,0.5220089,92167.0,92166.0,0.10350959]
[1765370071006,0.0185289,92167.0,92166.0,0.10350959]
[1765370071307,0.5110089,92167.0,92166.0,0.10350959]
[1765370072808,0.5110089,92167.0,92166.0,0.10550959]
[1765370074405,0.5110089,92167.0,92166.0,0.10750959]
[1765370075205,0.0185289,92167.0,92166.0,0.10750959]
[1765370075413,0.5220089,92167.0,92166.0,0.10750959]
[1765370076101,0.5143289,92167.0,92166.0,0.10750959]
[1765370078712,0.5143289,92167.0,92166.0,0.03330959]
[1765370079013,0.5143289,92167.0,92166.0,0.10750959]
[1765370083512,0.5143289,92167.0,92166.0,0.06703959]
[1765370083715,0.5143289,92167.0,92166.0,0.10145959]
[1765370087107,0.5143289,92167.0,92166.0,0.03330959]
[1765370087913,0.5143289,92167.0,92166.0,0.10145959]
[1765370089205,0.5143289,92167.0,92166.0,0.13068836]
[1765370093816,0.5143289,92167.0,92166.0,0.06253836]
[1765370094416,0.5143289,92167.0,92166.0,0.03330959]
[1765370095322,0.5143289,92167.0,92166.0,0.0625517]
[1765370095719,0.01094,92161.0,92156.0,0.08011794]
[1765370096030,0.01094,92161.0,92146.0,0.07799609]
[1765370096031,0.01094,92136.0,92135.0,0.02063]
[1765370096214,0.01094,92136.0,92130.0,0.02063]
[1765370096215,0.01094,92131.0,92130.0,0.05436]
[1765370096524,0.01094,92131.0,92130.0,0.08878]
[1765370096720,0.0769838,92126.0,92125.0,0.08878]
[1765370099124,0.0789838,92126.0,92125.0,0.08878]
[1765370100712,0.0769842,92122.0,92121.0,0.0001628]
[1765370101124,0.0769849,92116.0,92115.0,0.00108561]
[1765370101316,0.5807049,92116.0,92115.0,0.00108561]
[1765370110745,0.5808649,92116.0,92115.0,0.08986561]
[1765370111749,0.5808649,92116.0,92115.0,0.00108561]
[1765370119061,0.5808649,92116.0,92115.0,0.11546561]
[1765370119557,0.5809049,92116.0,92115.0,0.11546561]
[1765370121964,0.0769849,92116.0,92115.0,0.11546561]
[1765370122160,0.5809049,92116.0,92115.0,0.11546561]
[1765370122555,0.5809449,92116.0,92115.0,0.11546561]
[1765370123760,0.0769849,92116.0,92115.0,0.11546561]
[1765370123964,0.5809449,92116.0,92115.0,0.11546561]
[1765370124461,0.5809049,92116.0,92115.0,0.11546561]
[1765370126262,0.5809449,92116.0,92115.0,0.11546561]
[1765370129161,0.5809449,92116.0,92115.0,0.00108561]
[1765370129669,0.5809449,92116.0,92115.0,0.11546561]
[1765370129865,0.5809449,92116.0,92115.0,0.00108561]
[1765370131563,0.5809449,92116.0,92115.0,0.11546561]